bitfinex/quotes_SOLUSD_20250330
["timestamp","ask_amount","ask_price","bid_price","bid_amount"]
[1743358802455,7.38216157,125.27,125.26,0.063]
[1743358808860,7.24,125.27,125.26,0.063]
[1743358810370,7.24,125.27,125.26,8.0463]
[1743358810738,7.38216157,125.27,125.26,0.063]
[1743358816947,211.22,125.3,125.26,0.063]
[1743358817155,7.22,125.29,125.26,0.063]
[1743358818142,7.22,125.29,125.26,8.0463]
[1743358818761,7.22,125.28,125.26,15.8409]
[1743358819060,7.22,125.28,125.26,35.7993]
[1743358819967,7.22,125.29,125.26,35.7993]
[1743358821467,7.22,125.29,125.26,0.063]
[1743358821768,211.22,125.3,125.26,0.063]
[1743358821959,7.22,125.29,125.26,0.063]
[1743358825267,0.14216157,125.28,125.26,0.063]
[1743358829477,7.22,125.29,125.26,0.063]
[1743358829772,7.22,125.28,125.27,20.0]
[1743358832286,7.22,125.28,125.27,27.9827]
[1743358833377,18.79181043,125.32,125.27,27.9827]
[1743358833573,7.22,125.31,125.27,27.9827]
[1743358838983,7.22,125.31,125.27,20.0]
[1743358841291,7.22,125.31,125.26,0.063]
[1743358841582,31.40842006,125.3,125.26,0.063]
[1743358842365,12.7587712,125.29,125.26,0.063]
[1743358842969,31.40842006,125.3,125.26,0.063]
[1743358845182,0.14216157,125.29,125.26,0.063]
[1743358845684,31.40842006,125.3,125.26,0.063]
[1743358845685,88.32,125.31,125.26,0.063]
[1743358845987,0.14216157,125.3,125.26,0.063]
[1743358858484,0.14216157,125.3,125.26,9.6043]
[1743358858675,7.22,125.29,125.26,9.6043]
[1743358858875,7.22,125.29,125.26,29.5627]
[1743358859389,0.14216157,125.3,125.26,29.5627]
[1743358859586,7.22,125.29,125.26,29.5627]
[1743358860407,7.22,125.29,125.26,0.063]
[1743358861797,7.22,125.29,125.26,8.0462]
[1743358863698,7.22,125.29,125.26,0.063]
[1743358864693,0.14216157,125.28,125.26,0.063]
[1743358876011,18.79181043,125.28,125.26,0.063]
[1743358876208,114.08222006,125.27,125.26,0.063]
[1743358876385,114.58222006,125.27,125.26,0.063]
[1743358877114,114.58222006,125.27,125.26,0.02616332]
[1743358878815,122.56492006,125.27,125.26,0.02616332]
[1743358879393,114.08222006,125.27,125.26,0.02616332]
[1743358879805,114.22438163,125.27,125.26,0.02616332]
[1743358880995,114.72438163,125.27,125.26,0.02616332]
[1743358881190,114.22438163,125.27,125.26,0.02616332]
[1743358883914,122.70708163,125.27,125.26,0.02616332]
[1743358885310,114.72438163,125.27,125.26,0.02616332]
[1743358885506,114.22438163,125.27,125.26,0.02616332]
[1743358885818,114.72438163,125.27,125.26,0.02616332]
[1743358885998,122.70708163,125.27,125.26,0.02616332]
[1743358887431,122.20708163,125.27,125.26,0.02616332]
[1743358887734,122.70708163,125.27,125.26,0.02616332]
[1743358889021,122.70708163,125.27,125.26,0.00616332]
[1743358891019,334.00708163,125.27,125.26,0.00616332]
[1743358891318,0.5,125.24,125.22,0.063]
[1743358891515,38.62842006,125.23,125.22,0.063]
[1743358895322,38.77058163,125.23,125.22,0.063]
[1743358895819,250.09058163,125.23,125.22,0.063]
[1743358899625,211.46216157,125.23,125.22,0.063]
[1743358899817,218.68216157,125.23,125.22,0.063]
[1743358900020,211.46216157,125.23,125.22,0.063]
[1743358900327,218.68216157,125.23,125.22,0.063]
[1743358900523,7.36216157,125.23,125.22,0.063]
[1743358900924,0.14216157,125.23,125.22,0.063]
[1743358901224,33.2681527,125.27,125.22,0.063]
[1743358901430,7.22,125.26,125.24,20.0]
[1743358901812,7.22,125.26,125.25,7.984]
[1743358902218,7.22,125.26,125.25,15.6734]
[1743358902425,7.22,125.3,125.28,20.0]
[1743358902618,7.22,125.29,125.28,20.0]
[1743358903820,7.22,125.29,125.28,27.9821]
[1743358905016,7.36216157,125.29,125.26,7.9833]
[1743358905918,7.39216157,125.29,125.26,7.9833]
[1743358906231,7.25,125.29,125.28,20.0]
[1743358906541,0.03,125.29,125.28,20.0]
[1743358908535,0.03,125.29,125.28,27.9821]
[1743358909235,0.03,125.29,125.28,7.9821]
[1743358910735,0.03,125.29,125.28,20.0]
[1743358912637,0.14216157,125.34,125.29,27.6894]
[1743358912837,7.22,125.33,125.3,27.9329]
[1743358913140,7.22,125.33,125.32,20.0]
[1743358915742,7.22,125.33,125.32,27.9795]
[1743358916241,7.22,125.33,125.32,32.0485984]
[1743358916537,7.22,125.33,125.31,20.0]
[1743358916841,7.22,125.33,125.3,7.9808]
[1743358917218,7.22,125.33,125.3,12.06949214]
[1743358918641,7.25,125.33,125.3,12.06949214]
[1743358918833,7.25,125.33,125.32,20.0]
[1743358919833,0.03,125.33,125.32,20.0]
[1743358920036,0.03,125.33,125.32,27.9795]
[1743358920718,211.33,125.35,125.32,47.9284]
[1743358921421,0.03,125.35,125.32,47.9284]
[1743358922254,0.03,125.35,125.33,7.8707]
[1743358922545,0.03,125.36,125.35,20.0]
[1743358922747,0.03,125.37,125.36,20.0]
[1743358924350,0.03,125.37,125.36,27.977]
[1743358926459,0.03,125.39,125.36,128.9195]
[1743358926630,0.03,125.39,125.37,18.64964886]
[1743358926837,0.03,125.4,125.38,7.8707]
[1743358928535,0.03,125.4,125.39,7.9751]
[1743358929933,0.03,125.41,125.39,7.9751]
[1743358930260,0.03,125.45,125.42,27.8707]
[1743358930457,0.03,125.53,125.46,20.0]
[1743358930757,7.28,125.52,125.47,27.895]
[1743358930936,0.03,125.53,125.5,20.0]
[1743358932062,0.03,125.53,125.5,101.0]
[1743358932641,0.03,125.53,125.51,7.9674]
[1743358934142,0.03,125.53,125.51,11.86920865]
[1743358934757,0.03,125.53,125.5,101.0]
[1743358934957,7.56,125.52,125.51,20.0]
[1743358935349,7.56,125.52,125.47,99.64964886]
[1743358935746,7.56,125.52,125.47,93.02299105]
[1743358937340,7.56,125.52,125.47,88.9699]
[1743358937549,27.39139454,125.52,125.45,56.18628992]
[1743358938177,0.03,125.53,125.48,20.0]
[1743358938361,0.03,125.53,125.49,18.64964886]
[1743358938539,0.03,125.53,125.5,20.0]
[1743358938745,0.03,125.53,125.46,7.9701]
[1743358938941,19.86139454,125.53,125.45,141.27811822]
[1743358939961,0.03,125.53,125.48,20.0]
[1743358940154,0.03,125.53,125.49,20.0]
[1743358940559,19.86139454,125.53,125.48,20.0]
[1743358940760,19.86139454,125.53,125.45,141.27811822]
[1743358941046,0.14216157,125.52,125.45,141.27811822]
[1743358941262,19.97355611,125.52,125.45,141.27811822]
[1743358941747,0.14216157,125.52,125.45,141.27811822]
[1743358941943,0.14216157,125.51,125.45,137.18618992]
[1743358942161,0.14216157,125.49,125.45,137.18618992]
[1743358943774,0.14216157,125.49,125.45,129.21508992]
[1743358944262,0.14216157,125.49,125.45,137.18628992]
[1743358945769,0.14216157,125.49,125.45,48.21508992]
[1743358945947,0.14216157,125.49,125.43,7.9721]
[1743358945948,19.97355611,125.49,125.43,7.9721]
[1743358946148,19.83139454,125.48,125.43,7.9721]
[1743358946344,18.64964886,125.49,125.43,7.9721]
[1743358946554,38.4810434,125.49,125.43,7.9721]
[1743358947469,38.4810434,125.49,125.43,20.0]
[1743358948361,7.92,125.5,125.44,20.0]
[1743358948559,21.43679454,125.51,125.44,20.0]
[1743358948871,7.92,125.49,125.44,20.0]
[1743358949474,7.92,125.49,125.46,7.9706]
[1743358950171,7.92,125.49,125.48,20.0]
[1743358950357,0.17216157,125.53,125.49,20.0]
[1743358950546,8.13216157,125.53,125.49,20.0]
[1743358951075,0.03,125.53,125.49,20.0]
[1743358951257,0.03,125.53,125.49,81.0]
[1743358951456,0.03,125.53,125.52,27.9668]
[1743358951847,0.03,125.53,125.52,20.0]
[1743358952162,0.03,125.53,125.51,7.9672]
[1743358952668,0.03,125.53,125.49,81.0]
[1743358952874,0.14216157,125.51,125.49,20.0]
[1743358953249,8.06,125.52,125.49,20.0]
[1743358953448,8.06,125.52,125.5,7.9681]
[1743358954674,0.14216157,125.51,125.49,20.0]
[1743358954871,0.14216157,125.51,125.48,7.9692]
[1743358955572,0.14216157,125.51,125.47,7.97]
[1743358958582,0.14216157,125.51,125.46,8.0336]
[1743358959161,0.14216157,125.51,125.46,27.9602]
[1743358961460,0.14216157,125.51,125.49,20.0]
[1743358961665,0.03,125.53,125.49,20.0]
[1743358962866,0.03,125.53,125.5,7.9681]
[1743358963688,0.03,125.53,125.5,27.8884]
[1743358964395,0.03,125.53,125.52,20.0]
[1743358964773,0.03,125.53,125.52,27.9668]
[1743358965798,0.03,125.53,125.52,108.9668]
[1743358968473,0.03,125.53,125.52,88.9668]
[1743358971105,211.02,125.56,125.52,108.8839]
[1743358973594,211.02,125.56,125.52,88.9668]
[1743358973774,19.83139454,125.56,125.52,88.9668]
[1743358974187,27.97139454,125.57,125.52,88.9668]
[1743358974496,0.14216157,125.56,125.52,88.9668]
[1743358975474,0.14216157,125.54,125.52,7.9668]
[1743358975686,0.14216157,125.54,125.5,27.8884]
[1743358978196,0.17216157,125.54,125.5,27.8884]
[1743358983100,20.00355611,125.54,125.5,7.9681]
[1743358983397,19.83139454,125.53,125.5,7.9681]
[1743358983581,8.12,125.52,125.5,7.9681]
[1743358984388,8.12,125.52,125.48,19.9232]
[1743358985395,0.14216157,125.51,125.48,19.9232]
[1743358987284,0.14216157,125.51,125.47,7.97]
[1743358987488,19.97355611,125.51,125.47,7.97]
[1743358988211,0.14216157,125.51,125.47,7.97]
[1743358989809,0.14216157,125.51,125.48,0.063]
[1743358990192,19.97355611,125.51,125.48,0.063]
[1743358990756,19.83139454,125.5,125.48,0.063]
[1743358991002,19.83139454,125.49,125.48,0.063]
[1743358992487,21.45339454,125.5,125.48,0.063]
[1743358994306,0.14216157,125.49,125.48,0.063]
[1743358996517,19.97355611,125.49,125.48,0.063]
[1743358997822,12.85761757,125.49,125.48,0.063]
[1743359000722,112.17666413,125.52,125.48,0.063]
[1743359000925,12.715456,125.51,125.48,0.063]
[1743359001330,0.14216157,125.51,125.48,0.063]
[1743359001531,2.9366174,125.65,125.55,20.0]
[1743359001838,20.791256,125.75,125.59,20.0]
[1743359002050,7.5758,125.75,125.6,0.347]
[1743359002351,12.715456,125.73,125.63,20.0]
[1743359002526,8.04,125.72,125.63,20.0]
[1743359003031,8.04,125.71,125.65,20.0]
[1743359003225,8.04,125.71,125.66,7.9579]
[1743359003652,8.04,125.71,125.66,27.8528]
[1743359004026,14.1488952,125.75,125.66,27.8528]
[1743359004231,8.02,125.74,125.66,27.8528]
[1743359006537,8.02,125.74,125.66,108.8528]
[1743359006946,8.0,125.73,125.66,108.8528]
[1743359007130,8.0,125.73,125.66,152.58648938]
[1743359007624,8.0,125.74,125.69,20.0]
[1743359007821,25.63060767,125.8,125.69,101.0]
[1743359008040,31.65571052,125.78,125.69,101.0]
[1743359008338,31.65571052,125.77,125.69,101.0]
[1743359009231,31.65571052,125.77,125.7,7.9554]
[1743359009430,218.68,125.79,125.7,7.9554]
[1743359009431,31.65571052,125.75,125.7,7.9554]
[1743359009631,7.98,125.74,125.7,7.9554]
[1743359010749,31.65571052,125.72,125.64,104.92426962]
[1743359011040,31.65571052,125.71,125.64,87.4377]
[1743359011248,31.65571052,125.73,125.65,7.9586]
[1743359011620,37.95151052,125.75,125.66,18.64964886]
[1743359011831,7.96,125.74,125.66,99.64964886]
[1743359012327,7.96,125.74,125.66,103.63721263]
[1743359012529,39.61571052,125.74,125.66,103.63721263]
[1743359012827,31.65571052,125.73,125.66,84.98756377]
[1743359013031,31.65571052,125.73,125.66,81.0]
[1743359013541,7.96,125.74,125.66,88.9573]
[1743359014043,7.96,125.74,125.66,108.8522]
[1743359014347,0.03,125.73,125.66,88.9573]
[1743359015146,0.03,125.73,125.66,92.88593339]
[1743359017535,210.54,125.72,125.66,92.88593339]
[1743359021127,210.54,125.72,125.69,20.0]
[1743359021346,0.03,125.73,125.67,7.9569]
[1743359021551,0.03,125.73,125.67,26.60654886]
[1743359023733,0.03,125.73,125.67,7.9569]
[1743359023933,31.68571052,125.73,125.67,7.9569]
[1743359024559,0.03,125.73,125.67,7.9569]
[1743359027041,0.03,125.73,125.67,27.8502]
[1743359027356,0.03,125.73,125.69,7.956]
[1743359027547,0.03,125.73,125.69,27.8462]
[1743359029341,0.03,125.73,125.69,19.8902]
[1743359031163,0.03,125.73,125.68,26.60634886]
[1743359031349,0.03,125.73,125.67,88.9571]
[1743359031540,19.81999293,125.73,125.67,88.9571]
[1743359031740,0.03,125.73,125.67,88.9571]
[1743359033039,0.03,125.73,125.68,18.64964886]
[1743359033446,0.03,125.73,125.67,88.9571]
[1743359037175,19.78999293,125.71,125.67,81.0]
[1743359037471,8.14,125.7,125.67,81.0]
[1743359038362,8.14,125.7,125.67,81.063]
[1743359040867,8.14,125.7,125.67,0.063]
[1743359042366,0.03,125.73,125.7,20.0]
[1743359042949,0.03,125.73,125.67,134.963]
[1743359043169,0.03,125.73,125.68,7.9567]
[1743359043374,8.1,125.72,125.68,7.9567]
[1743359045547,27.88999293,125.72,125.68,7.9567]
[1743359049472,19.78999293,125.69,125.67,0.063]
[1743359049656,19.78999293,125.68,125.67,0.063]
[1743359051271,19.78999293,125.7,125.67,0.063]
[1743359051463,19.78999293,125.71,125.67,0.063]
[1743359051864,19.78999293,125.69,125.67,0.063]
[1743359053264,19.78999293,125.7,125.67,0.063]
[1743359053780,8.02,125.69,125.67,0.063]
[1743359054480,218.52,125.69,125.67,0.063]
[1743359057085,238.30999293,125.69,125.67,0.063]
[1743359057286,218.52,125.69,125.67,0.063]
[1743359058480,218.48,125.69,125.67,0.063]
[1743359060987,218.44,125.69,125.67,0.063]
[1743359061984,238.22999293,125.69,125.67,0.063]
[1743359062191,218.44,125.69,125.67,0.063]
[1743359067091,238.22999293,125.69,125.67,0.063]
[1743359067274,218.44,125.69,125.67,0.063]
[1743359070175,238.22999293,125.69,125.67,0.063]
[1743359070377,218.44,125.69,125.67,0.063]
[1743359076504,14.27789177,125.68,125.67,0.063]
[1743359076985,20.49939177,125.68,125.67,0.063]
[1743359078887,28.45609177,125.68,125.67,0.063]
[1743359082015,47.60574063,125.68,125.67,0.063]
[1743359083605,128.70574063,125.68,125.67,0.063]
[1743359086788,128.20574063,125.68,125.67,0.063]
[1743359091711,128.70574063,125.68,125.67,0.063]
[1743359092515,135.15597348,125.68,125.67,0.063]
[1743359093716,128.70574063,125.68,125.67,0.063]
[1743359094702,47.00024886,125.67,125.57,90.5892]
[1743359094896,12.67309177,125.63,125.57,90.5892]
[1743359095096,7.7,125.62,125.57,90.5892]
[1743359095839,20.37309177,125.62,125.57,82.626]
[1743359096323,20.37309177,125.62,125.57,90.5896]
[1743359098099,210.64,125.61,125.57,90.5896]
[1743359099523,210.64,125.61,125.57,9.5896]
[1743359109434,210.64,125.61,125.57,7.9636]
[1743359114446,223.31309177,125.61,125.56,8.0271]
[1743359114813,210.64,125.61,125.56,8.0271]
[1743359116132,223.31309177,125.61,125.56,8.0271]
[1743359119255,12.67309177,125.6,125.56,0.063]
[1743359119543,12.67309177,125.58,125.56,0.063]
[1743359119727,7.52,125.57,125.56,0.063]
[1743359126827,218.24,125.57,125.56,0.063]
[1743359129248,230.91309177,125.57,125.56,0.063]
[1743359129835,238.65729177,125.57,125.56,0.063]
[1743359130528,257.30694063,125.57,125.56,0.063]
[1743359132543,210.72,125.57,125.56,0.063]
[1743359132939,218.16,125.57,125.56,0.063]
[1743359133938,210.72,125.57,125.56,0.063]
[1743359134143,218.16,125.57,125.56,0.063]
[1743359144455,210.72,125.57,125.56,0.063]
[1743359144639,218.1,125.57,125.56,0.063]
[1743359145244,7.38,125.59,125.56,87.7595]
[1743359146263,223.37309177,125.64,125.56,87.7595]
[1743359146638,7.38,125.63,125.56,168.7595]
[1743359150167,7.36,125.62,125.56,168.7595]
[1743359150354,210.7,125.64,125.58,1.6583]
[1743359150542,7.36,125.63,125.58,1.6583]
[1743359151461,7.36,125.63,125.59,27.8684]
[1743359151666,7.36,125.62,125.59,27.8684]
[1743359156767,0.03,125.62,125.6,18.64964886]
[1743359158785,0.03,125.62,125.61,7.9611]
[1743359160754,0.03,125.62,125.6,7.9617]
[1743359172367,7.28,125.65,125.63,20.0]
[1743359174702,7.28,125.65,125.64,7.9592]
[1743359175389,7.28,125.65,125.64,12.03658787]
[1743359175793,7.26,125.65,125.64,12.03658787]
[1743359176180,7.26,125.65,125.64,7.9592]
[1743359179887,7.29,125.66,125.64,7.9592]
[1743359180289,0.03,125.65,125.64,7.9592]
[1743359180980,0.03,125.65,125.64,26.60884886]
[1743359181892,0.03,125.66,125.64,7.9592]
[1743359182098,0.03,125.66,125.64,33.08540591]
[1743359182695,0.03,125.66,125.64,26.60884886]
[1743359183305,0.03,125.66,125.64,7.9592]
[1743359183493,14.33089177,125.66,125.62,8.0233]
[1743359183695,14.33089177,125.66,125.62,0.063]
[1743359184285,12.67309177,125.64,125.62,0.063]
[1743359184501,7.26,125.63,125.62,0.063]
[1743359196318,19.93309177,125.63,125.62,0.063]
[1743359199622,7.26,125.63,125.62,0.063]
[1743359214836,12.70309177,125.65,125.62,0.063]
[1743359214837,0.03,125.65,125.62,0.063]
[1743359215041,7.26,125.63,125.62,20.063]
[1743359215454,7.26,125.63,125.62,28.0235]
[1743359216024,7.26,125.64,125.62,47.9247]
[1743359218439,7.26,125.64,125.62,28.0235]
[1743359221865,0.03,125.65,125.62,128.9247]
[1743359222028,7.26,125.7,125.64,6.336]
[1743359222355,7.26,125.7,125.65,18.64964886]
[1743359222929,7.26,125.7,125.64,87.336]
[1743359223149,7.26,125.7,125.65,18.64964886]
[1743359223471,210.63,125.73,125.65,18.64964886]
[1743359223627,7.26,125.7,125.65,99.64964886]
[1743359223831,7.26,125.7,125.66,27.8528]
[1743359227134,7.29,125.7,125.66,27.8528]
[1743359228248,7.29,125.7,125.69,20.0]
[1743359228443,0.03,125.7,125.69,119.64964886]
[1743359230379,0.03,125.7,125.69,127.60564886]
[1743359232151,0.03,125.7,125.69,88.956]
[1743359234786,0.03,125.7,125.66,92.44454886]
[1743359234787,0.03,125.7,125.66,134.9]
[1743359234947,12.67309177,125.69,125.64,7.9592]
[1743359235153,19.93309177,125.68,125.64,7.9592]
[1743359236464,19.93309177,125.68,125.63,88.9596]
[1743359237385,19.93309177,125.68,125.63,7.9596]
[1743359238387,19.93309177,125.68,125.62,0.063]
[1743359238562,7.26,125.68,125.62,0.063]
[1743359251674,12.70309177,125.7,125.64,20.0]
[1743359252003,7.26,125.69,125.65,20.0]
[1743359252483,0.03,125.7,125.65,20.0]
[1743359252688,7.26,125.68,125.65,20.0]
[1743359253202,7.26,125.68,125.66,7.9579]
[1743359260404,19.93309177,125.68,125.63,7.9598]
[1743359260777,12.67309177,125.67,125.63,7.9598]
[1743359262100,12.67309177,125.67,125.62,81.063]
[1743359262101,14.33429177,125.66,125.62,81.063]
[1743359264005,14.33429177,125.66,125.62,0.063]
[1743359265408,12.67309177,125.65,125.62,0.063]
[1743359265619,7.26,125.64,125.62,0.063]
[1743359268112,7.26,125.64,125.6,7.80877257]
[1743359268414,7.26,125.64,125.59,7.9624]
[1743359269420,7.26,125.64,125.6,19.9044]
[1743359270783,0.03,125.68,125.6,19.9044]
[1743359270989,7.26,125.67,125.6,19.9044]
[1743359271916,0.03,125.68,125.6,19.9044]
[1743359272213,7.26,125.67,125.6,19.9044]
[1743359272409,7.26,125.67,125.63,20.0]
[1743359274115,19.93309177,125.67,125.63,20.0]
[1743359274719,19.93309177,125.67,125.64,7.9592]
[1743359275018,19.96309177,125.67,125.64,7.9592]
[1743359275514,12.67309177,125.66,125.61,7.9611]
[1743359277602,19.96309177,125.67,125.61,7.9611]
[1743359278814,12.67309177,125.66,125.61,7.9611]
[1743359279310,12.67309177,125.64,125.61,7.9611]
[1743359279509,7.26,125.63,125.61,7.9611]
[1743359280708,7.26,125.63,125.61,20.0]
[1743359282911,7.26,125.63,125.62,7.9605]
[1743359284325,7.26,125.63,125.61,7.9611]
[1743359285018,12.70309177,125.67,125.61,7.9611]
[1743359285316,12.70309177,125.67,125.61,27.8639]
[1743359285317,7.26,125.66,125.61,27.8639]
[1743359285519,0.03,125.67,125.61,33.9476]
[1743359285711,7.26,125.66,125.61,33.9476]
[1743359286831,7.26,125.66,125.61,73.8163]
[1743359287002,0.03,125.63,125.61,73.8163]
[1743359287203,0.03,125.63,125.61,154.8163]
[1743359290336,0.03,125.67,125.65,20.0]
[1743359290628,7.26,125.66,125.65,20.0]
[1743359291107,7.26,125.66,125.61,154.8163]
[1743359291108,7.26,125.66,125.64,20.0]
[1743359291829,7.26,125.66,125.64,27.9586]
[1743359295139,0.03,125.67,125.64,47.8567]
[1743359295306,7.26,125.66,125.64,47.8567]
[1743359296122,0.03,125.67,125.65,7.7239]
[1743359296332,0.03,125.7,125.65,7.7239]
[1743359296635,0.03,125.7,125.65,82.5018]
[1743359296938,0.03,125.7,125.65,81.0]
[1743359298035,0.03,125.7,125.66,27.8528]
[1743359309343,0.03,125.7,125.66,7.9579]
[1743359310537,12.70309177,125.7,125.66,7.9579]
[1743359312640,12.70309177,125.7,125.65,7.9586]
[1743359312942,0.03,125.7,125.65,7.9586]
[1743359313644,0.03,125.7,125.65,27.8551]
[1743359313954,0.03,125.7,125.68,20.0]
[1743359314638,0.03,125.7,125.69,7.956]
[1743359323653,7.27,125.7,125.69,7.956]
[1743359328566,7.27,125.7,125.68,7.9564]
[1743359329533,7.27,125.7,125.66,8.0209]
[1743359329733,7.27,125.7,125.66,27.9158]
[1743359334255,7.27,125.7,125.66,108.9158]
[1743359335156,0.03,125.7,125.66,108.9158]
[1743359345271,0.03,125.7,125.69,20.0]
[1743359346265,0.03,125.7,125.69,27.956]
[1743359350466,0.03,125.7,125.69,46.60564886]
[1743359353985,0.03,125.73,125.69,66.63801043]
[1743359354176,0.0001,125.75,125.74,81.28432314]
[1743359354357,0.03,125.78,125.74,81.28432314]
[1743359354358,0.03,125.83,125.78,18.64964886]
[1743359354564,0.03,125.83,125.78,99.64964886]
[1743359355081,7.27,125.83,125.78,99.64964886]
[1743359355279,2.869545,125.9,125.85,20.0]
[1743359355488,2.869545,125.9,125.85,101.0]
[1743359355989,2.869545,125.9,125.86,7.9453]
[1743359356296,2.869545,125.9,125.89,20.0]
[1743359356663,2.869545,125.9,125.86,108.8086]
[1743359358600,2.869545,125.9,125.86,88.9453]
[1743359358989,22.60288766,125.9,125.86,81.0]
[1743359359774,2.869545,125.9,125.86,81.0]
[1743359359991,2.869545,125.9,125.85,7.9458]
[1743359361374,22.60288766,125.9,125.85,7.9458]
[1743359362489,2.869545,125.9,125.85,7.9458]
[1743359362887,7.24,125.89,125.85,7.9458]
[1743359363180,2.869545,125.9,125.85,46.46034886]
[1743359363378,7.24,125.89,125.85,46.46034886]
[1743359363692,7.24,125.89,125.85,127.46034886]
[1743359364392,7.24,125.89,125.88,20.0]
[1743359364688,7.24,125.89,125.88,27.944]
[1743359365393,7.24,125.89,125.88,7.944]
[1743359365572,7.24,125.89,125.86,7.9453]
[1743359366995,7.24,125.89,125.85,81.0]
[1743359367294,7.24,125.89,125.85,88.9456]
[1743359369693,7.27,125.89,125.85,88.9456]
[1743359371293,27.00334266,125.89,125.85,81.0]
[1743359371502,28.60624266,125.89,125.85,81.0]
[1743359371797,6.0177,125.88,125.85,81.0]
[1743359372098,25.75104266,125.88,125.85,81.0]
[1743359372495,25.75104266,125.88,125.83,7.9469]
[1743359373105,25.75104266,125.88,125.83,11.9267594]
[1743359374484,6.0177,125.88,125.83,11.9267594]
[1743359381413,19.73334266,125.86,125.81,81.0]
[1743359382317,19.73334266,125.86,125.81,88.9483]
[1743359382617,19.73334266,125.86,125.83,0.063]
[1743359383213,19.73334266,125.87,125.83,0.063]
[1743359386090,27.67814266,125.87,125.83,0.063]
[1743359387823,20.58458968,125.87,125.83,0.063]
[1743359389111,12.63978968,125.87,125.83,0.063]
[1743359395020,12.66978968,125.87,125.83,0.063]
[1743359397502,0.03,125.87,125.83,0.063]
[1743359398897,7.25,125.87,125.83,81.063]
[1743359399104,0.03,125.87,125.83,81.063]
[1743359399535,0.03,125.87,125.84,6.093]
[1743359400195,0.03,125.89,125.86,38.64964886]
[1743359400400,0.03,125.89,125.86,119.64964886]
[1743359400602,0.03,125.89,125.87,7.9447]
[1743359401321,0.03,125.89,125.88,1.5231]
[1743359401626,2.869545,125.9,125.88,20.17274886]
[1743359402627,2.869545,125.9,125.89,7.9434]
[1743359402819,2.869545,125.9,125.89,107.59304886]
[1743359403924,6.22,125.94,125.89,127.45164886]
[1743359404123,6.22,125.94,125.9,18.64964886]
[1743359404306,217.46,125.97,125.9,24.74264886]
[1743359404497,217.46,125.97,125.9,105.74264886]
[1743359405727,217.46,125.97,125.91,7.9421]
[1743359406105,230.09978968,125.97,125.91,7.9421]
[1743359407024,12.63978968,125.96,125.9,88.9425]
[1743359409527,12.63978968,125.94,125.89,7.9433]
[1743359409722,12.63978968,125.94,125.88,7.9439]
[1743359410615,12.63978968,125.93,125.88,7.9439]
[1743359410824,7.22,125.92,125.88,7.9439]
[1743359411645,12.63978968,125.9,125.84,81.063]
[1743359412135,12.63978968,125.89,125.84,81.063]
[1743359412335,7.22,125.88,125.84,81.063]
[1743359413310,19.85978968,125.88,125.84,81.063]
[1743359413806,34.90868978,125.88,125.84,81.063]
[1743359414321,26.96458978,125.88,125.84,0.063]
[1743359415422,19.74458978,125.87,125.84,0.063]